bitfinex/quotes_SOLUSD_20240813
["timestamp","ask_amount","ask_price","bid_price","bid_amount"]
[1723544130107,40.35,144.48,144.43,0.12549]
[1723544130330,40.35,144.48,144.43,0.25098]
[1723544130628,6.9221,144.47,144.43,7.17438]
[1723544130808,6.9224,144.46,144.45,0.12549]
[1723544131006,26.9224,144.46,144.45,0.25098]
[1723544131226,59.31487683,144.52,144.45,7.17378]
[1723544131437,6.9212,144.49,144.45,7.17378]
[1723544131725,26.9213,144.48,144.46,45.0]
[1723544131904,6.9218,144.47,144.46,45.12549]
[1723544132109,26.9218,144.47,144.46,0.25098]
[1723544132545,20.0,144.47,144.46,0.25098]
[1723544132710,17.3,144.51,144.47,0.12549]
[1723544133041,6.9207,144.5,144.47,0.25098]
[1723544133212,6.9207,144.5,144.47,45.25098]
[1723544133528,6.9209,144.49,144.47,45.25098]
[1723544133752,6.9209,144.49,144.47,0.25098]
[1723544133906,6.9209,144.49,144.48,0.12549]
[1723544134230,20.0,144.49,144.48,0.25098]
[1723544134441,26.9208,144.49,144.48,0.25098]
[1723544134729,20.81962878,144.49,144.46,45.0]
[1723544134944,6.9223,144.46,144.45,45.25098]
[1723544135713,6.922,144.47,144.45,45.25098]
[1723544135908,20.0,144.49,144.47,0.12549]
[1723544136128,15.6797,144.56,144.48,0.12549]
[1723544136301,6.9195,144.52,144.5,0.12549]
[1723544137131,6.919,144.53,144.5,0.12549]
[1723544137331,43.13862224,144.57,144.5,0.12549]
[1723544137332,0.81962878,144.56,144.5,0.12549]
[1723544137528,6.9199,144.51,144.5,0.12549]
[1723544137718,6.9191,144.53,144.5,0.12549]
[1723544137927,6.9191,144.53,144.5,0.25098]
[1723544138129,6.9194,144.52,144.5,0.12549]
[1723544138300,57.6453,144.55,144.5,0.12549]
[1723544138301,6.9199,144.51,144.5,0.12549]
[1723544138708,6.9195,144.52,144.5,0.12549]
[1723544139524,57.648,144.53,144.49,0.12549]
[1723544139724,6.9209,144.49,144.48,0.12549]
[1723544140132,6.9206,144.5,144.47,0.25098]
[1723544140738,6.9206,144.5,144.47,45.25098]
[1723544141132,6.9209,144.49,144.47,45.25098]
[1723544141332,6.9209,144.49,144.48,45.12549]
[1723544141534,6.9209,144.49,144.48,0.25098]
[1723544141738,6.9205,144.5,144.48,0.25098]
[1723544141915,20.0,144.52,144.49,0.12549]
[1723544142119,17.2932,144.57,144.49,0.12549]
[1723544142120,6.9193,144.53,144.5,0.12549]
[1723544142324,20.0,144.54,144.5,45.12549]
[1723544142812,20.0,144.54,144.49,0.12549]
[1723544142813,6.9204,144.5,144.49,0.25098]
[1723544143225,20.0,144.54,144.49,0.25098]
[1723544143226,6.9202,144.51,144.5,0.12549]
[1723544143655,17.2999,144.51,144.45,15.1364]
[1723544143960,20.81962878,144.5,144.43,17.3088]
[1723544144117,6.9217,144.48,144.43,24.2324]
[1723544144657,6.9218,144.47,144.43,24.2324]
[1723544144945,6.9214,144.48,144.44,13.107]
[1723544145157,6.9209,144.49,144.45,52.42466]
[1723544145443,20.0,144.5,144.47,0.12549]
[1723544145736,6.9197,144.52,144.47,17.42969]
[1723544145945,20.0,144.51,144.49,0.12549]
[1723544146240,6.9188,144.54,144.49,18.25329642]
[1723544146537,6.9188,144.54,144.51,0.12549]
[1723544146729,6.9188,144.54,144.51,0.95390498]
[1723544147037,6.9189,144.53,144.52,0.12549]
[1723544147434,6.9186,144.54,144.51,0.25098]
[1723544148032,40.35,144.59,144.51,6.89498]
[1723544148230,17.44042878,144.61,144.55,0.12549]
[1723544148231,6.9167,144.58,144.55,0.12549]
[1723544148425,53.69271681,144.62,144.55,0.12549]
[1723544148426,6.9159,144.6,144.55,53.67697234]
[1723544148740,6.9159,144.6,144.57,0.12549]
[1723544148944,40.35,144.62,144.51,13.5636]
[1723544149242,17.2908,144.59,144.52,45.12549]
[1723544149617,40.35,144.6,144.52,45.12549]
[1723544149846,6.9169,144.58,144.53,6.9186]
[1723544150147,57.6375,144.62,144.55,0.12549]
[1723544150148,6.9171,144.57,144.55,0.12549]
[1723544150320,6.9171,144.57,144.55,0.25098]
[1723544150525,6.9167,144.58,144.57,0.12549]
[1723544150746,6.9162,144.59,144.57,0.25098]
[1723544151239,6.9162,144.59,144.58,0.37647]
[1723544151815,6.9162,144.59,144.58,0.50196]
[1723544152243,6.9162,144.59,144.58,0.37647]
[1723544152548,6.9162,144.59,144.58,0.12549]
[1723544152740,6.9162,144.59,144.57,0.50196]
[1723544152934,6.9157,144.6,144.57,0.50196]
[1723544153234,6.9152,144.61,144.59,0.12549]
[1723544153434,6.9152,144.61,144.59,45.37647]
[1723544153826,6.9156,144.6,144.59,45.25098]
[1723544154137,6.9153,144.61,144.59,45.37647]
[1723544154945,6.9156,144.6,144.59,45.37647]
[1723544155344,6.9151,144.61,144.59,45.50196]
[1723544155555,6.9143,144.63,144.6,0.12549]
[1723544155717,26.9147,144.62,144.61,0.12549]
[1723544155917,26.9147,144.62,144.61,0.37647]
[1723544156146,26.9147,144.62,144.61,0.50196]
[1723544156347,26.9147,144.62,144.61,0.37647]
[1723544156518,26.9147,144.62,144.61,0.12549]
[1723544156717,26.9147,144.62,144.54,6.2803]
[1723544156718,6.9156,144.6,144.54,6.2803]
[1723544156934,6.9169,144.58,144.57,45.37647]
[1723544157543,6.9162,144.59,144.57,45.37647]
[1723544158349,6.9165,144.58,144.57,45.25098]
[1723544158846,6.9163,144.59,144.57,45.25098]
[1723544159222,37.2868,144.62,144.57,45.25098]
[1723544159435,6.9165,144.58,144.57,45.12549]
[1723544159647,6.9165,144.58,144.57,45.25098]
[1723544160128,20.0,144.62,144.57,45.25098]
[1723544160330,20.0,144.62,144.58,0.12549]
[1723544160857,6.9161,144.59,144.58,0.12549]
[1723544161041,26.9161,144.59,144.58,0.12549]
[1723544161524,20.0,144.59,144.58,0.12549]
[1723544161935,26.9161,144.59,144.58,0.12549]
[1723544162632,20.0,144.59,144.58,0.12549]
[1723544162833,6.9157,144.6,144.58,0.12549]
[1723544164427,57.636,144.63,144.58,0.12549]
[1723544164428,6.9161,144.59,144.58,0.12549]
[1723544166252,6.9157,144.6,144.58,0.12549]
[1723544166450,6.9161,144.59,144.58,0.12549]
[1723544167064,17.2849,144.64,144.58,0.12549]
[1723544167237,6.9148,144.62,144.59,0.12549]
[1723544167438,20.0,144.61,144.59,45.25098]
[1723544167637,6.9148,144.62,144.6,0.12549]
[1723544168152,6.9148,144.62,144.61,0.12549]
[1723544168546,94.90092985,144.67,144.61,0.12549]
[1723544168547,6.9145,144.63,144.61,0.12549]
[1723544168752,6.9145,144.63,144.61,0.37647]
[1723544168954,6.9145,144.63,144.62,0.12549]
[1723544170041,26.9145,144.63,144.62,0.12549]
[1723544171667,2.81821772,144.67,144.63,0.12549]
[1723544171961,6.9128,144.66,144.63,0.37647]
[1723544172161,6.9128,144.66,144.64,0.12549]
[1723544172348,6.9122,144.68,144.65,0.12549]
[1723544172566,6.9122,144.68,144.65,45.37647]
[1723544172776,6.9122,144.67,144.66,0.12549]
[1723544173281,6.9127,144.66,144.65,45.12549]
[1723544173575,6.9127,144.66,144.65,0.12549]
[1723544174157,6.9124,144.67,144.65,0.25098]
[1723544174356,6.9114,144.69,144.67,0.12549]
[1723544174675,6.9114,144.69,144.67,0.25098]
[1723544174847,6.9114,144.69,144.68,0.12549]
[1723544175349,6.9118,144.68,144.67,0.12549]
[1723544175868,26.9118,144.68,144.67,0.25098]
[1723544177378,20.0,144.68,144.67,0.25098]
[1723544177688,6.9118,144.68,144.67,0.50196]
[1723544179166,6.9116,144.69,144.67,0.50196]
[1723544179577,6.9111,144.7,144.69,0.12549]
[1723544179786,26.9111,144.7,144.69,0.25098]
[1723544180087,26.9111,144.7,144.69,0.50196]
[1723544180382,26.9111,144.7,144.69,0.25098]
[1723544182967,27.73072878,144.7,144.69,0.12549]
[1723544183178,26.9111,144.7,144.69,0.12549]
[1723544183383,20.0,144.7,144.68,0.25098]
[1723544183573,20.0,144.73,144.7,0.12549]
[1723544183885,6.9103,144.71,144.7,0.25098]
[1723544184093,26.9103,144.71,144.7,0.25098]
[1723544184788,6.9118,144.68,144.67,0.12549]
[1723544184987,6.9118,144.68,144.67,0.37647]
[1723544185998,6.9115,144.69,144.67,0.37647]
[1723544188776,6.9108,144.7,144.68,0.12549]
[1723544189796,26.9105,144.71,144.69,0.12549]
[1723544190004,20.0,144.71,144.69,0.25098]
[1723544190175,6.9102,144.72,144.71,0.12549]
[1723544190374,6.9102,144.72,144.71,0.25098]
[1723544190375,26.9102,144.72,144.71,0.25098]
[1723544190791,26.9102,144.72,144.71,0.37647]
[1723544191391,20.0,144.72,144.71,0.50196]
[1723544191682,17.2698,144.77,144.71,7.41226]
[1723544191985,17.2698,144.77,144.72,0.25098]
[1723544192190,6.9085,144.75,144.73,0.25098]
[1723544192503,6.9085,144.75,144.74,0.25098]
[1723544192689,6.9085,144.75,144.74,0.50196]
[1723544193292,20.0,144.75,144.74,0.50196]
[1723544193602,6.9076,144.77,144.75,0.12549]
[1723544193907,6.9076,144.77,144.75,0.25098]
[1723544194092,6.9072,144.78,144.77,0.12549]
[1723544194291,6.9072,144.78,144.77,0.25098]
[1723544194601,6.9072,144.78,144.77,0.37647]
[1723544194779,6.9072,144.78,144.77,0.25098]
[1723544195202,6.9072,144.78,144.77,0.37647]
[1723544195708,6.9072,144.78,144.77,0.25098]
[1723544195903,26.9072,144.78,144.77,0.25098]
[1723544196404,26.9072,144.78,144.76,0.12549]
[1723544196405,52.15,144.78,144.72,6.0194]
[1723544196585,6.9087,144.75,144.72,6.0194]
[1723544197395,32.15,144.76,144.69,23.9241]
[1723544197710,20.81962878,144.75,144.69,6.6468]
[1723544197889,6.9108,144.7,144.68,15.1944]
[1723544198210,6.9104,144.71,144.68,15.1944]
[1723544198684,32.15,144.74,144.68,15.1944]
[1723544198685,6.9108,144.7,144.68,15.1944]
[1723544199696,32.15,144.72,144.66,6.2646]
[1723544199890,6.9116,144.69,144.66,6.2646]
[1723544200210,6.9119,144.68,144.66,6.2646]
[1723544201105,6.9114,144.69,144.66,6.2646]
[1723544201406,32.15,144.7,144.63,17.2846]
[1723544201592,6.9127,144.66,144.63,17.2846]
[1723544201797,6.9124,144.67,144.63,24.1987]
[1723544202915,6.9124,144.67,144.64,45.50196]
[1723544207711,6.9123,144.67,144.64,45.50196]
[1723544209285,6.9118,144.68,144.64,52.41546]
[1723544209483,20.0,144.67,144.66,0.12549]
[1723544209707,6.9114,144.69,144.66,45.50196]
[1723544209887,20.0,144.68,144.66,52.41436]
[1723544210098,16.0299,144.73,144.66,45.50196]
[1723544210312,37.2749,144.72,144.66,45.50196]
[1723544210506,6.9118,144.68,144.66,45.50196]
[1723544210697,6.9111,144.7,144.66,52.41466]
[1723544211007,16.0299,144.73,144.66,45.50196]
[1723544211812,6.91,144.72,144.68,0.12549]
[1723544212111,32.15,144.69,144.62,6.6251]
[1723544212321,6.9134,144.65,144.62,6.6251]
[1723544212796,49.4312,144.67,144.62,6.6251]
[1723544213197,6.9141,144.63,144.62,6.6251]
[1723544213407,20.0,144.66,144.62,6.6251]
[1723544213805,6.9141,144.63,144.62,6.6251]
[1723544214905,6.9138,144.64,144.63,0.12549]
[1723544215222,6.9138,144.64,144.63,45.25098]
[1723544216995,6.9138,144.64,144.63,0.12549]
[1723544218242,49.4309,144.67,144.63,0.12549]
[1723544218243,6.9133,144.65,144.63,0.12549]
[1723544219501,49.4331,144.65,144.58,6.2694]
[1723544219700,57.38209093,144.68,144.58,6.2694]
[1723544219701,6.9161,144.59,144.58,6.2694]
[1723544219901,6.9158,144.6,144.56,6.9171]
[1723544220106,32.15,144.63,144.56,17.2932]
[1723544220437,26.9149,144.62,144.58,6.9163]
[1723544220795,26.9149,144.62,144.56,17.2932]
[1723544221001,20.0,144.62,144.56,17.2932]
[1723544221228,6.9171,144.57,144.54,13.2381]
[1723544221897,6.9171,144.57,144.53,24.2152]
[1723544222097,6.9176,144.56,144.53,17.2964]
[1723544222303,0.81962878,144.58,144.5,38.8785]
[1723544222535,20.81962878,144.58,144.5,38.8785]
[1723544222823,32.96962878,144.57,144.5,30.3004]
[1723544223027,6.9185,144.54,144.5,30.3004]
[1723544223204,6.9181,144.55,144.51,6.9198]
[1723544223528,37.2918,144.58,144.52,17.2982]
[1723544223529,20.0,144.58,144.52,17.2982]
[1723544223730,6.9172,144.57,144.53,6.9188]
[1723544224016,20.0,144.58,144.55,0.12549]
[1723544224017,20.0,144.56,144.55,0.12549]
[1723544224204,6.9159,144.6,144.55,52.41996]
[1723544224408,20.0,144.59,144.55,52.41996]
[1723544225103,26.9162,144.59,144.55,52.41996]
[1723544225526,20.0,144.59,144.55,45.50196]
[1723544225743,20.0,144.6,144.55,45.37647]
[1723544226235,6.9166,144.58,144.55,45.37647]
[1723544226525,6.9172,144.57,144.55,45.37647]
[1723544226707,6.9172,144.57,144.55,0.37647]
[1723544226905,7.73682878,144.57,144.56,0.12549]
[1723544227228,6.9175,144.56,144.55,0.12549]
[1723544227422,6.918,144.55,144.54,45.0]
[1723544227623,6.918,144.55,144.54,45.25098]
[1723544228009,6.9193,144.53,144.5,6.0802]
[1723544228208,6.9193,144.53,144.48,17.3028]
[1723544230035,6.9193,144.53,144.49,6.9208]
[1723544230250,6.9186,144.54,144.49,6.9208]
[1723544230407,6.9186,144.54,144.5,45.50196]
[1723544231323,6.918,144.55,144.5,69.72276]
[1723544231530,26.9186,144.54,144.5,69.72276]
[1723544232135,20.0,144.54,144.53,0.12549]
[1723544232441,6.9175,144.56,144.52,0.12549]
[1723544232643,26.9181,144.55,144.52,45.50196]
[1723544232931,20.0,144.55,144.52,52.42116]
[1723544233184,20.0,144.55,144.54,0.12549]
[1723544233314,20.0,144.59,144.53,0.25098]
[1723544233649,20.0,144.59,144.54,0.12549]
[1723544233939,0.81962878,144.58,144.55,0.12549]
[1723544234738,32.15,144.57,144.54,0.12549]
[1723544235040,6.9173,144.57,144.54,0.12549]
[1723544235333,6.9178,144.56,144.54,45.12549]
[1723544235741,6.9178,144.56,144.54,0.12549]
[1723544236738,6.9171,144.57,144.54,0.25098]
[1723544236936,6.9171,144.57,144.55,0.12549]
[1723544237145,6.9175,144.56,144.55,0.12549]
[1723544237319,6.9175,144.56,144.54,0.12549]
[1723544237523,6.9172,144.57,144.54,0.25098]
[1723544237842,52.15,144.59,144.54,0.25098]
[1723544238154,6.918,144.55,144.54,0.25098]
[1723544238528,32.15,144.57,144.53,45.0]
[1723544238835,20.81962878,144.56,144.53,45.0]
[1723544239043,0.81962878,144.55,144.53,45.0]
[1723544239349,6.9188,144.54,144.5,6.9202]
[1723544240420,6.918,144.55,144.51,7.04519]
[1723544240850,7.73812878,144.54,144.52,0.12549]
[1723544241158,6.9189,144.53,144.52,0.12549]
[1723544241665,32.15,144.53,144.46,33.7751]
[1723544241829,32.15,144.53,144.47,12.9373]
[1723544241830,6.9202,144.51,144.47,12.9373]
[1723544242023,32.15,144.53,144.47,6.0158]
[1723544242222,26.9196,144.52,144.48,6.921]
[1723544243058,6.9199,144.51,144.5,0.12549]
[1723544243441,26.9196,144.52,144.5,0.12549]
[1723544243645,20.0,144.52,144.49,7.17168]
[1723544244031,26.9195,144.52,144.49,0.25098]
[1723544244244,6.9199,144.51,144.49,45.25098]
[1723544244448,6.9199,144.51,144.5,0.12549]
[1723544245237,26.9196,144.52,144.5,0.12549]
[1723544246861,20.0,144.52,144.47,6.0158]
[1723544247035,6.921,144.49,144.46,16.4704]
[1723544247229,49.4506,144.51,144.44,6.3942]
[1723544247433,20.81962878,144.5,144.44,6.3942]
[1723544247743,6.922,144.47,144.43,6.9237]
[1723544247935,6.9215,144.48,144.44,6.9232]
[1723544248246,6.9212,144.49,144.45,6.9226]
[1723544249161,20.0,144.5,144.45,0.12549]
[1723544249162,6.9214,144.48,144.45,0.12549]
[1723544249329,6.9218,144.47,144.45,45.37647]
[1723544249532,6.9218,144.47,144.45,45.25098]
[1723544249762,6.9218,144.47,144.45,0.12549]
[1723544249942,49.4525,144.49,144.42,15.2761]
[1723544250134,6.9225,144.46,144.44,0.12549]
[1723544250441,20.0,144.48,144.44,0.25098]
[1723544251042,6.9221,144.47,144.44,0.25098]
[1723544251248,20.0,144.46,144.44,45.25098]
[1723544251648,26.9223,144.46,144.44,45.25098]
[1723544251852,26.9223,144.46,144.45,45.12549]
[1723544252055,26.9223,144.46,144.45,0.25098]
[1723544252570,26.9223,144.46,144.45,0.12549]
[1723544252751,26.9223,144.46,144.44,0.25098]
[1723544254844,6.9228,144.45,144.44,0.25098]
[1723544255049,6.9233,144.44,144.42,15.2761]
[1723544255697,6.9233,144.44,144.4,13.3678]
[1723544256380,6.9242,144.42,144.41,0.12549]
[1723544256677,6.9238,144.43,144.41,0.12549]
[1723544257459,6.9238,144.43,144.41,0.25098]
[1723544257880,6.9238,144.43,144.41,45.25098]
[1723544259279,6.9234,144.44,144.38,17.3143]
[1723544259688,6.9234,144.44,144.4,24.2378]
[1723544260251,6.923,144.45,144.41,52.17558]
[1723544260484,6.923,144.45,144.42,0.25098]
[1723544260776,6.923,144.45,144.43,0.12549]
[1723544260982,6.9225,144.46,144.43,0.12549]
[1723544261197,32.15,144.49,144.43,45.12549]
[1723544261198,26.923,144.45,144.43,45.12549]
[1723544261557,26.923,144.45,144.43,0.12549]
[1723544261946,20.0,144.45,144.43,0.12549]
[1723544262153,20.0,144.45,144.43,24.48398]
[1723544262365,20.0,144.48,144.45,0.12549]
[1723544263669,6.9223,144.46,144.45,0.12549]
[1723544263880,6.9228,144.45,144.44,45.0]
[1723544264064,26.9228,144.45,144.44,0.12549]
[1723544264759,26.9228,144.45,144.43,0.25098]
[1723544264957,6.9232,144.44,144.42,45.0]
[1723544265168,26.923,144.45,144.41,51.9247]
[1723544265558,6.9234,144.44,144.41,45.0]
[1723544265954,26.923,144.45,144.41,51.9245]
[1723544266165,6.924,144.43,144.4,17.3118]
[1723544267660,6.924,144.43,144.41,0.12549]
[1723544267866,6.924,144.43,144.41,45.25098]
[1723544268276,6.9254,144.4,144.37,17.3154]
[1723544269279,6.9254,144.4,144.37,24.242]
[1723544269458,6.9257,144.39,144.35,6.9272]
[1723544270164,6.9269,144.37,144.33,13.459]
[1723544270465,6.9271,144.36,144.31,18.1430388]
[1723544270693,20.0,144.35,144.33,6.9285]
[1723544271259,26.9272,144.36,144.32,6.9289]
[1723544271455,6.9276,144.35,144.31,25.0723388]
[1723544271655,20.0,144.36,144.32,6.929]
[1723544271890,6.9267,144.37,144.31,18.1430388]
[1723544272073,20.0,144.36,144.31,18.1430388]
[1723544272254,20.0,144.38,144.33,17.3211]
[1723544272579,26.9265,144.38,144.33,24.2495]
[1723544272787,20.0,144.38,144.34,45.0]
[1723544272956,20.0,144.38,144.35,0.25098]
[1723544273161,20.0,144.4,144.35,0.12549]
[1723544273381,32.15,144.39,144.35,0.12549]
[1723544273570,6.9271,144.36,144.35,0.12549]
[1723544273759,6.9277,144.35,144.32,17.3218]
[1723544273958,20.0,144.36,144.31,0.8200388]
[1723544274162,6.9283,144.34,144.31,0.8200388]
[1723544275169,6.9285,144.33,144.31,0.8200388]
[1723544275767,39.89862878,144.32,144.31,0.8200388]
[1723544276062,20.0,144.32,144.27,17.328]
[1723544276261,32.15,144.34,144.27,17.328]
[1723544276591,20.0,144.33,144.3,6.9299]
[1723544276760,20.0,144.33,144.27,17.328]
[1723544276761,26.9281,144.34,144.29,6.9301]
[1723544276961,20.0,144.34,144.29,17.3255]
[1723544277191,18.22093736,144.38,144.32,0.12549]
[1723544277386,6.9258,144.39,144.35,0.12549]
[1723544277691,6.9261,144.38,144.35,0.25098]
[1723544277898,6.9261,144.38,144.35,45.25098]
[1723544278210,6.927,144.37,144.35,45.12549]
[1723544278392,6.9276,144.35,144.34,45.12549]
[1723544278612,6.928,144.34,144.3,17.44979]
[1723544278890,6.9267,144.37,144.31,0.37647]
[1723544279190,6.9262,144.38,144.34,0.12549]
[1723544279360,20.0,144.37,144.34,7.42996]
[1723544279564,20.0,144.37,144.34,0.37647]
[1723544279769,20.0,144.37,144.35,0.12549]
[1723544280068,19.55073498,144.4,144.36,0.12549]
[1723544280368,6.9247,144.41,144.36,45.37647]
[1723544280593,0.81962878,144.4,144.36,45.37647]
[1723544280885,32.15,144.42,144.36,45.37647]
[1723544280886,0.81962878,144.41,144.36,45.25098]
[1723544281188,0.81962878,144.41,144.37,0.12549]
[1723544281189,20.0,144.41,144.37,0.12549]
[1723544281386,20.0,144.41,144.38,0.12549]
[1723544281565,20.0,144.43,144.38,7.30257]
[1723544281768,6.9242,144.42,144.4,0.12549]
[1723544281985,26.9247,144.41,144.4,0.25098]
[1723544282696,6.9252,144.4,144.39,45.12549]
[1723544282873,6.927,144.37,144.34,6.0154]
[1723544283213,32.15,144.38,144.31,6.9291]
[1723544283372,6.9272,144.36,144.31,6.9291]
[1723544283779,6.9286,144.33,144.3,21.166]
[1723544284094,6.9286,144.33,144.3,6.1522]
[1723544284407,6.9281,144.34,144.3,6.1522]
[1723544284697,32.15,144.36,144.26,16.046]
[1723544284698,6.9295,144.32,144.27,6.9311]
[1723544285189,6.9295,144.31,144.27,6.9314]
[1723544285406,6.9306,144.29,144.25,17.33]
[1723544285763,6.9313,144.28,144.22,6.357]
[1723544285899,0.81962878,144.3,144.25,6.9323]
[1723544286097,20.0,144.33,144.22,6.357]
[1723544286319,20.0,144.33,144.27,17.3277]
[1723544286320,6.9292,144.32,144.27,17.3277]
[1723544286602,47.36,144.3,144.25,6.9324]
[1723544286808,40.43,144.3,144.24,24.2643]
[1723544286981,40.43,144.3,144.25,6.9323]
[1723544287301,40.43,144.3,144.24,17.3319]
[1723544287684,6.9305,144.29,144.24,24.2643]
[1723544288009,40.43,144.3,144.24,17.3319]
[1723544288375,6.9309,144.29,144.24,24.2647]
[1723544288699,6.9301,144.3,144.25,6.9323]
[1723544289378,6.9301,144.3,144.27,0.12549]
[1723544289616,6.9296,144.31,144.27,0.12549]
[1723544289832,20.0,144.3,144.27,7.05649]
[1723544290149,20.0,144.33,144.29,0.12549]
[1723544290431,20.0,144.33,144.29,45.25098]
[1723544290636,26.9286,144.33,144.29,0.12549]
[1723544290821,26.9286,144.33,144.29,45.25098]
[1723544291131,20.0,144.33,144.26,17.45439]
[1723544291332,6.9296,144.31,144.27,45.0]
[1723544291537,6.9306,144.29,144.24,6.9327]
[1723544291713,7.75052878,144.28,144.23,24.2664]
[1723544291914,6.9309,144.28,144.23,24.2664]
[1723544292113,6.9299,144.31,144.25,6.9319]
[1723544292323,6.9306,144.29,144.23,24.266]
[1723544292543,6.9314,144.27,144.23,17.3332]
[1723544292837,40.43,144.32,144.23,17.3332]
[1723544293042,20.0,144.31,144.23,24.2661]
[1723544293227,20.0,144.31,144.26,0.12549]
[1723544293415,20.0,144.31,144.26,52.18268]
[1723544293610,20.0,144.31,144.27,7.05679]
[1723544293815,26.9295,144.31,144.28,45.25098]
[1723544294345,26.9295,144.31,144.28,0.25098]
[1723544294720,20.0,144.31,144.28,0.25098]
[1723544295039,53.02332895,144.38,144.29,6.3282]
[1723544295216,6.9272,144.36,144.32,0.12549]
[1723544295542,6.9276,144.35,144.32,45.25098]
[1723544295771,53.02332895,144.38,144.3,45.0]
[1723544295957,53.02332895,144.38,144.31,0.12549]
[1723544296259,6.9281,144.34,144.31,0.25098]
[1723544296466,6.9272,144.36,144.31,7.30587]
[1723544296617,12.59332895,144.38,144.35,0.12549]
[1723544296618,19.51942895,144.38,144.35,0.12549]
[1723544296815,6.9261,144.38,144.35,45.25098]
[1723544297221,6.9257,144.39,144.35,45.25098]
[1723544297533,6.9261,144.38,144.35,45.25098]
[1723544297737,0.81962878,144.37,144.35,45.25098]
[1723544297944,6.9271,144.36,144.32,0.12549]
[1723544298125,6.9284,144.34,144.32,0.12549]
[1723544298321,18.13472878,144.39,144.29,6.3282]
[1723544298322,6.9286,144.33,144.29,6.3282]
[1723544298525,6.9286,144.33,144.3,45.0]
[1723544298832,40.43,144.38,144.3,45.0]
[1723544299141,6.9277,144.35,144.3,51.9299]
[1723544299548,20.0,144.34,144.3,51.9299]
[1723544299842,20.0,144.34,144.32,6.9289]
[1723544300042,57.7411,144.42,144.34,6.928]
[1723544300257,6.9257,144.39,144.35,45.25098]
[1723544300435,40.43,144.44,144.35,45.25098]
[1723544300642,6.925,144.41,144.37,6.9265]
[1723544300840,6.925,144.41,144.39,0.12549]
[1723544301142,6.9252,144.4,144.37,0.12549]
[1723544301347,0.81962878,144.39,144.35,0.12549]
[1723544301549,6.9257,144.39,144.35,45.25098]
[1723544301727,6.9253,144.4,144.35,45.25098]
[1723544301933,20.0,144.39,144.37,0.12549]
[1723544302144,20.0,144.39,144.37,0.25098]
[1723544302344,32.7818,144.45,144.38,0.12549]
[1723544302563,6.9242,144.42,144.39,0.12549]
[1723544302925,6.9242,144.42,144.39,0.25098]
[1723544303127,6.9242,144.42,144.39,0.12549]
[1723544303358,6.9242,144.42,144.38,0.37647]
[1723544303555,6.9242,144.42,144.39,0.12549]
[1723544303755,20.0,144.41,144.39,45.12549]
[1723544303932,7.74342878,144.43,144.4,0.12549]
[1723544304128,0.81962878,144.43,144.4,0.12549]
[1723544304331,6.9237,144.43,144.4,0.12549]
[1723544305135,12.70307756,144.46,144.4,0.12549]
[1723544305359,6.9228,144.45,144.41,7.04979]
[1723544305533,6.9233,144.44,144.42,45.12549]
[1723544305735,40.43,144.48,144.41,45.12549]
[1723544305933,40.43,144.48,144.41,0.12549]
[1723544306337,40.43,144.48,144.41,0.25098]
[1723544306562,6.9219,144.47,144.43,0.12549]